[Event "Titled Tuesday Blitz June 13 Early 2023"]
[White "Melikhov, Evgeny V."]
[Black "Kielinkei"]
[WhiteFideId "4122046"]
[WhiteElo "2158"]
[BlackElo "2480"]
[Result "1-0"]
[Round "9"]
[TimeControl "180+2"]
[Date "2023.06.13"]
[WhiteClock "0:00:14"]
[BlackClock "0:00:13"]
[Board "114"]

1. d4 {[%clk 0:03:00]}  f5 {[%clk 0:02:58]} 2. e4 {[%clk 0:03:00]}  fxe4 {[%clk 0:02:58]} 3. Nc3 {[%clk 0:03:01]}  Nf6 {[%clk 0:02:57]} 4. Bg5 {[%clk 0:03:01]}  g6 {[%clk 0:02:48]} 5. Bc4 {[%clk 0:02:59]}  Bg7 {[%clk 0:02:43]} 6. d5 {[%clk 0:02:34]}  O-O {[%clk 0:02:39]} 7. Nge2 {[%clk 0:02:29]}  d6 {[%clk 0:02:18]} 8. O-O {[%clk 0:02:23]}  Nbd7 {[%clk 0:02:14]} 9. Ng3 {[%clk 0:02:18]}  Ne5 {[%clk 0:02:09]} 10. Bb3 {[%clk 0:02:14]}  Bf5 {[%clk 0:02:01]} 11. Qd2 {[%clk 0:02:06]}  Qd7 {[%clk 0:01:48]} 12. Rae1 {[%clk 0:02:00]}  Kh8 {[%clk 0:01:22]} 13. Bh6 {[%clk 0:01:58]}  Bxh6 {[%clk 0:01:03]} 14. Qxh6 {[%clk 0:01:57]}  Neg4 {[%clk 0:01:00]} 15. Qd2 {[%clk 0:01:51]}  e3 {[%clk 0:00:59]} 16. fxe3 {[%clk 0:01:50]}  Ne5 {[%clk 0:00:43]} 17. e4 {[%clk 0:01:49]}  Bg4 {[%clk 0:00:42]} 18. Qh6 {[%clk 0:01:30]}  Nf7 {[%clk 0:00:25]} 19. Qe3 {[%clk 0:01:19]}  Nh5 {[%clk 0:00:24]} 20. Nxh5 {[%clk 0:01:17]}  Bxh5 {[%clk 0:00:24]} 21. h3 {[%clk 0:01:04]}  g5 {[%clk 0:00:20]} 22. Ba4 {[%clk 0:00:53]}  c6 {[%clk 0:00:15]} 23. dxc6 {[%clk 0:00:52]}  bxc6 {[%clk 0:00:15]} 24. Bb3 {[%clk 0:00:47]}  h6 {[%clk 0:00:12]} 25. Bxf7 {[%clk 0:00:43]}  Rxf7 {[%clk 0:00:11]} 26. Rxf7 {[%clk 0:00:41]}  Bxf7 {[%clk 0:00:12]} 27. e5 {[%clk 0:00:41]}  Qe6 {[%clk 0:00:11]} 28. exd6 {[%clk 0:00:38]}  Qxe3+ {[%clk 0:00:11]} 29. Rxe3 {[%clk 0:00:39]}  exd6 {[%clk 0:00:12]} 30. Re7 {[%clk 0:00:39]}  Kg7 {[%clk 0:00:10]} 31. Ne4 {[%clk 0:00:37]}  Rd8 {[%clk 0:00:05]} 32. Rxa7 {[%clk 0:00:35]}  d5 {[%clk 0:00:05]} 33. Nc5 {[%clk 0:00:34]}  Kf6 {[%clk 0:00:05]} 34. c3 {[%clk 0:00:33]}  d4 {[%clk 0:00:05]} 35. Rd7 {[%clk 0:00:15]}  Rxd7 {[%clk 0:00:02]} 36. Nxd7+ {[%clk 0:00:15]}  Ke7 {[%clk 0:00:02]} 37. Nc5 {[%clk 0:00:14]}  dxc3 {[%clk 0:00:02]} 38. bxc3 {[%clk 0:00:14]}  Bxa2 {[%clk 0:00:03]} 39. Kf2 {[%clk 0:00:15]}  Kd6 {[%clk 0:00:03]} 40. Nd3 {[%clk 0:00:13]}  Bc4 {[%clk 0:00:03]} 41. Nb4 {[%clk 0:00:13]}  c5 {[%clk 0:00:02]} 42. Nc2 {[%clk 0:00:13]}  Ke5 {[%clk 0:00:02]} 43. Ke3 {[%clk 0:00:13]}  Bb3 {[%clk 0:00:02]} 44. Ne1 {[%clk 0:00:13]}  Be6 {[%clk 0:00:02]} 45. Nd3+ {[%clk 0:00:12]}  Kd5 {[%clk 0:00:02]} 46. Nb2 {[%clk 0:00:12]}  Bf7 {[%clk 0:00:02]} 47. g3 {[%clk 0:00:11]}  Bg6 {[%clk 0:00:02]} 48. h4 {[%clk 0:00:11]}  gxh4 {[%clk 0:00:02]} 49. gxh4 {[%clk 0:00:11]}  Ke5 {[%clk 0:00:03]} 50. Nd3+ {[%clk 0:00:11]}  Kd5 {[%clk 0:00:03]} 51. Nf4+ {[%clk 0:00:11]}  Kc4 {[%clk 0:00:03]} 52. Nxg6 {[%clk 0:00:11]}  Kxc3 {[%clk 0:00:04]} 53. Ne5 {[%clk 0:00:11]}  Kb3 {[%clk 0:00:04]} 54. Ng4 {[%clk 0:00:11]}  c4 {[%clk 0:00:04]} 55. Kd2 {[%clk 0:00:10]}  Kb2 {[%clk 0:00:04]} 56. Ne3 {[%clk 0:00:10]}  c3+ {[%clk 0:00:05]} 57. Kd3 {[%clk 0:00:11]}  h5 {[%clk 0:00:05]} 58. Nd1+ {[%clk 0:00:11]}  Kb3 {[%clk 0:00:04]} 59. Nxc3 {[%clk 0:00:11]}  Kb4 {[%clk 0:00:04]} 60. Kd4 {[%clk 0:00:12]}  Kb3 {[%clk 0:00:04]} 61. Ne4 {[%clk 0:00:12]}  Kb4 {[%clk 0:00:05]} 62. Nf6 {[%clk 0:00:12]}  Kb5 {[%clk 0:00:06]} 63. Nxh5 {[%clk 0:00:12]}  Kc6 {[%clk 0:00:07]} 64. Ke5 {[%clk 0:00:13]}  Kc5 {[%clk 0:00:07]} 65. Kf6 {[%clk 0:00:13]}  Kc4 {[%clk 0:00:08]} 66. Ng7 {[%clk 0:00:13]}  Kd5 {[%clk 0:00:09]} 67. h5 {[%clk 0:00:13]}  Ke4 {[%clk 0:00:10]} 68. h6 {[%clk 0:00:13]}  Kd4 {[%clk 0:00:11]} 69. h7 {[%clk 0:00:14]}  Kd5 {[%clk 0:00:12]} 70. h8=Q {[%clk 0:00:14]}  Ke4 {[%clk 0:00:13]} 71. Qe8+ {[%clk 0:00:14]}  Kd4 {[%clk 0:00:14]} 72. Qe5+ {[%clk 0:00:14]}  Kc4 {[%clk 0:00:13]} 73. Qd6 {[%clk 0:00:14]} 1-0


[Site "https://www.chess.com"]

[Event "Titled Tuesday Blitz June 13 Early 2023"]
[White "Chemin, Justo Reinaldo"]
[Black "LangesNasenhaar"]
[WhiteFideId "2101580"]
[WhiteElo "1940"]
[BlackElo "2465"]
[Result "0-1"]
[Round "9"]
[TimeControl "180+2"]
[Date "2023.06.13"]
[WhiteClock "0:00:00"]
[BlackClock "0:00:09"]
[Board "117"]

1. d4 {[%clk 0:03:00]}  g6 {[%clk 0:02:59]} 2. Nf3 {[%clk 0:03:00]}  Bg7 {[%clk 0:02:59]} 3. Bf4 {[%clk 0:03:00]}  d6 {[%clk 0:02:59]} 4. e3 {[%clk 0:03:00]}  Nd7 {[%clk 0:02:59]} 5. Bc4 {[%clk 0:03:00]}  e5 {[%clk 0:02:49]} 6. dxe5 {[%clk 0:02:57]}  dxe5 {[%clk 0:02:49]} 7. Bg5 {[%clk 0:02:42]}  Ngf6 {[%clk 0:02:41]} 8. Nc3 {[%clk 0:02:29]}  c6 {[%clk 0:02:41]} 9. Qd6 {[%clk 0:02:17]}  Qe7 {[%clk 0:02:38]} 10. Ne4 {[%clk 0:02:10]}  h6 {[%clk 0:02:28]} 11. Bxf6 {[%clk 0:02:00]}  Nxf6 {[%clk 0:02:28]} 12. Nxf6+ {[%clk 0:01:50]}  Bxf6 {[%clk 0:02:20]} 13. Qxe7+ {[%clk 0:01:50]}  Kxe7 {[%clk 0:02:18]} 14. O-O-O {[%clk 0:01:49]}  b5 {[%clk 0:02:14]} 15. Bb3 {[%clk 0:01:45]}  Bf5 {[%clk 0:02:09]} 16. Rhe1 {[%clk 0:01:31]}  Rhd8 {[%clk 0:02:08]} 17. e4 {[%clk 0:01:31]}  Bg4 {[%clk 0:02:05]} 18. h3 {[%clk 0:01:23]}  Bxf3 {[%clk 0:02:02]} 19. gxf3 {[%clk 0:01:24]}  Bg5+ {[%clk 0:02:00]} 20. Kb1 {[%clk 0:01:23]}  Bh4 {[%clk 0:01:41]} 21. Rd3 {[%clk 0:01:09]}  Bxf2 {[%clk 0:01:33]} 22. Red1 {[%clk 0:01:09]}  Rxd3 {[%clk 0:01:21]} 23. Rxd3 {[%clk 0:01:08]}  Bd4 {[%clk 0:01:20]} 24. c3 {[%clk 0:01:07]}  Bb6 {[%clk 0:01:12]} 25. Kc2 {[%clk 0:01:02]}  f5 {[%clk 0:01:12]} 26. Kd1 {[%clk 0:00:52]}  fxe4 {[%clk 0:01:08]} 27. fxe4 {[%clk 0:00:51]}  Rf8 {[%clk 0:01:08]} 28. Rg3 {[%clk 0:00:46]}  Rf6 {[%clk 0:00:54]} 29. a4 {[%clk 0:00:40]}  a6 {[%clk 0:00:53]} 30. axb5 {[%clk 0:00:39]}  axb5 {[%clk 0:00:54]} 31. Bg8 {[%clk 0:00:35]}  Bf2 {[%clk 0:00:53]} 32. Rd3 {[%clk 0:00:33]}  Rf4 {[%clk 0:00:42]} 33. Bh7 {[%clk 0:00:33]}  Rf6 {[%clk 0:00:34]} 34. Bg8 {[%clk 0:00:28]}  Bc5 {[%clk 0:00:31]} 35. b4 {[%clk 0:00:23]}  Bd6 {[%clk 0:00:28]} 36. Kc2 {[%clk 0:00:23]}  Rf2+ {[%clk 0:00:21]} 37. Kb3 {[%clk 0:00:21]}  Rf4 {[%clk 0:00:21]} 38. Bh7 {[%clk 0:00:19]}  Rf6 {[%clk 0:00:18]} 39. c4 {[%clk 0:00:19]}  bxc4+ {[%clk 0:00:17]} 40. Kxc4 {[%clk 0:00:19]}  Kf7 {[%clk 0:00:14]} 41. b5 {[%clk 0:00:06]}  cxb5+ {[%clk 0:00:12]} 42. Kd5 {[%clk 0:00:06]}  Kg7 {[%clk 0:00:10]} 43. Kc6 {[%clk 0:00:06]}  Kxh7 {[%clk 0:00:09]} 44. Kd7 {[%clk 0:00:04]}  b4 {[%clk 0:00:09]} 45. Kc6 {[%clk 0:00:01]}  g5 {[%clk 0:00:09]} 46. Kd5 {[%clk 0:00:00]}  Kg6 {[%clk 0:00:09]} 0-1


[Site "https://www.chess.com"]

[Event "Titled Tuesday Blitz June 13 Early 2023"]
[White "Novikova, Margarita"]
[Black "Kozak, Antoni"]
[WhiteFideId "14109689"]
[BlackFideId "21832030"]
[WhiteElo "2013"]
[BlackElo "2470"]
[Result "1/2-1/2"]
[Round "9"]
[TimeControl "180+2"]
[Date "2023.06.13"]
[WhiteClock "0:00:09"]
[BlackClock "0:00:21"]
[Board "119"]

1. e4 {[%clk 0:03:00]}  Nf6 {[%clk 0:02:59]} 2. e5 {[%clk 0:03:00]}  Ne4 {[%clk 0:02:59]} 3. Nc3 {[%clk 0:02:58]}  d5 {[%clk 0:02:57]} 4. exd6 {[%clk 0:02:56]}  Nxd6 {[%clk 0:02:57]} 5. d4 {[%clk 0:02:55]}  g6 {[%clk 0:02:54]} 6. Nf3 {[%clk 0:02:54]}  Bg7 {[%clk 0:02:54]} 7. Be2 {[%clk 0:02:51]}  O-O {[%clk 0:02:55]} 8. O-O {[%clk 0:02:50]}  Bg4 {[%clk 0:02:56]} 9. Be3 {[%clk 0:02:50]}  Nc6 {[%clk 0:02:55]} 10. h3 {[%clk 0:02:48]}  Bxf3 {[%clk 0:02:53]} 11. Bxf3 {[%clk 0:02:49]}  Nc4 {[%clk 0:02:52]} 12. Bxc6 {[%clk 0:02:41]}  bxc6 {[%clk 0:02:53]} 13. Rb1 {[%clk 0:02:22]}  c5 {[%clk 0:02:38]} 14. dxc5 {[%clk 0:02:06]}  Rb8 {[%clk 0:02:37]} 15. Qxd8 {[%clk 0:01:47]}  Rfxd8 {[%clk 0:02:38]} 16. Rfd1 {[%clk 0:01:26]}  Rxd1+ {[%clk 0:01:57]} 17. Nxd1 {[%clk 0:01:23]}  Na3 {[%clk 0:01:57]} 18. Rc1 {[%clk 0:01:22]}  Bxb2 {[%clk 0:01:58]} 19. Nxb2 {[%clk 0:01:17]}  Rxb2 {[%clk 0:01:59]} 20. c6 {[%clk 0:01:16]}  Rxa2 {[%clk 0:01:39]} 21. Bxa7 {[%clk 0:01:11]}  Rxc2 {[%clk 0:00:59]} 22. Rxc2 {[%clk 0:01:09]}  Nxc2 {[%clk 0:01:00]} 23. Bb8 {[%clk 0:01:07]}  Nd4 {[%clk 0:00:58]} 24. Bxc7 {[%clk 0:01:06]}  Nxc6 {[%clk 0:00:59]} 25. Kh2 {[%clk 0:01:04]}  e5 {[%clk 0:00:53]} 26. Kg3 {[%clk 0:00:59]}  f5 {[%clk 0:00:52]} 27. Kf3 {[%clk 0:00:54]}  Kf7 {[%clk 0:00:47]} 28. Ke3 {[%clk 0:00:53]}  Ke6 {[%clk 0:00:46]} 29. f3 {[%clk 0:00:49]}  Nb4 {[%clk 0:00:41]} 30. Bb8 {[%clk 0:00:45]}  Nd5+ {[%clk 0:00:23]} 31. Kf2 {[%clk 0:00:42]}  Nf4 {[%clk 0:00:22]} 32. Ba7 {[%clk 0:00:39]}  Kd5 {[%clk 0:00:22]} 33. Be3 {[%clk 0:00:37]}  Nd3+ {[%clk 0:00:21]} 34. Ke2 {[%clk 0:00:36]}  Nb2 {[%clk 0:00:20]} 35. Bg5 {[%clk 0:00:33]}  Nc4 {[%clk 0:00:20]} 36. Bf6 {[%clk 0:00:32]}  h5 {[%clk 0:00:18]} 37. Bg7 {[%clk 0:00:30]}  Nb6 {[%clk 0:00:19]} 38. Bf6 {[%clk 0:00:30]}  Nd7 {[%clk 0:00:19]} 39. Bg7 {[%clk 0:00:28]}  Nc5 {[%clk 0:00:20]} 40. Bf6 {[%clk 0:00:28]}  Ne6 {[%clk 0:00:21]} 41. Kf2 {[%clk 0:00:24]}  Nf4 {[%clk 0:00:19]} 42. Bg5 {[%clk 0:00:24]}  Nd3+ {[%clk 0:00:17]} 43. Ke3 {[%clk 0:00:22]}  Nb2 {[%clk 0:00:15]} 44. Ke2 {[%clk 0:00:20]}  Nc4 {[%clk 0:00:16]} 45. Bh6 {[%clk 0:00:20]}  Nd6 {[%clk 0:00:11]} 46. Bg7 {[%clk 0:00:19]}  Nb5 {[%clk 0:00:12]} 47. Bf6 {[%clk 0:00:17]}  Nc7 {[%clk 0:00:11]} 48. Be7 {[%clk 0:00:16]}  Ne6 {[%clk 0:00:12]} 49. Bf6 {[%clk 0:00:11]}  e4 {[%clk 0:00:12]} 50. fxe4+ {[%clk 0:00:10]}  Kxe4 {[%clk 0:00:13]} 51. Kf2 {[%clk 0:00:08]}  Nf4 {[%clk 0:00:13]} 52. Bg5 {[%clk 0:00:08]}  Nd3+ {[%clk 0:00:12]} 53. Ke2 {[%clk 0:00:07]}  Ne5 {[%clk 0:00:10]} 54. Kf2 {[%clk 0:00:07]}  Nc6 {[%clk 0:00:10]} 55. Bc1 {[%clk 0:00:07]}  Nb4 {[%clk 0:00:10]} 56. Bd2 {[%clk 0:00:07]}  Nd5 {[%clk 0:00:10]} 57. Ke2 {[%clk 0:00:07]}  Nf4+ {[%clk 0:00:09]} 58. Kf2 {[%clk 0:00:07]}  Nd5 {[%clk 0:00:07]} 59. Bh6 {[%clk 0:00:07]}  Kd3 {[%clk 0:00:07]} 60. Kf3 {[%clk 0:00:07]}  Kd4 {[%clk 0:00:06]} 61. g4 {[%clk 0:00:07]}  fxg4+ {[%clk 0:00:04]} 62. hxg4 {[%clk 0:00:07]}  h4 {[%clk 0:00:04]} 63. Bg5 {[%clk 0:00:06]}  h3 {[%clk 0:00:04]} 64. Kg3 {[%clk 0:00:06]}  Ke4 {[%clk 0:00:05]} 65. Kxh3 {[%clk 0:00:05]}  Kf3 {[%clk 0:00:05]} 66. Bc1 {[%clk 0:00:05]}  Ne3 {[%clk 0:00:04]} 67. Bxe3 {[%clk 0:00:05]}  Kxe3 {[%clk 0:00:04]} 68. Kg3 {[%clk 0:00:05]}  g5 {[%clk 0:00:03]} 69. Kg2 {[%clk 0:00:03]}  Kf4 {[%clk 0:00:03]} 70. Kf2 {[%clk 0:00:03]}  Ke4 {[%clk 0:00:03]} 71. Kg2 {[%clk 0:00:03]}  Ke3 {[%clk 0:00:03]} 72. Kg3 {[%clk 0:00:03]}  Ke2 {[%clk 0:00:04]} 73. Kg2 {[%clk 0:00:04]}  Kd3 {[%clk 0:00:03]} 74. Kg3 {[%clk 0:00:04]}  Ke4 {[%clk 0:00:03]} 75. Kg2 {[%clk 0:00:04]}  Kf4 {[%clk 0:00:04]} 76. Kf2 {[%clk 0:00:04]}  Kxg4 {[%clk 0:00:05]} 77. Kg2 {[%clk 0:00:04]}  Kh4 {[%clk 0:00:05]} 78. Kh2 {[%clk 0:00:05]}  Kh5 {[%clk 0:00:05]} 79. Kg3 {[%clk 0:00:04]}  Kg6 {[%clk 0:00:06]} 80. Kg4 {[%clk 0:00:05]}  Kf6 {[%clk 0:00:06]} 81. Kg3 {[%clk 0:00:05]}  Kf5 {[%clk 0:00:07]} 82. Kf3 {[%clk 0:00:05]}  Ke5 {[%clk 0:00:08]} 83. Kg4 {[%clk 0:00:05]}  Kf6 {[%clk 0:00:09]} 84. Kg3 {[%clk 0:00:05]}  Kg6 {[%clk 0:00:10]} 85. Kg4 {[%clk 0:00:05]}  Kh6 {[%clk 0:00:10]} 86. Kg3 {[%clk 0:00:05]}  Kh5 {[%clk 0:00:11]} 87. Kh3 {[%clk 0:00:06]}  g4+ {[%clk 0:00:12]} 88. Kg3 {[%clk 0:00:06]}  Kg5 {[%clk 0:00:12]} 89. Kg2 {[%clk 0:00:06]}  Kh4 {[%clk 0:00:13]} 90. Kh2 {[%clk 0:00:07]}  Kg5 {[%clk 0:00:13]} 91. Kg3 {[%clk 0:00:07]}  Kf5 {[%clk 0:00:13]} 92. Kg2 {[%clk 0:00:07]}  Kf4 {[%clk 0:00:14]} 93. Kf2 {[%clk 0:00:07]}  g3+ {[%clk 0:00:14]} 94. Kg2 {[%clk 0:00:08]}  Kg4 {[%clk 0:00:15]} 95. Kg1 {[%clk 0:00:07]}  Kh4 {[%clk 0:00:16]} 96. Kg2 {[%clk 0:00:07]}  Kg4 {[%clk 0:00:16]} 97. Kg1 {[%clk 0:00:07]}  Kf5 {[%clk 0:00:17]} 98. Kg2 {[%clk 0:00:07]}  Kf4 {[%clk 0:00:18]} 99. Kg1 {[%clk 0:00:08]}  Kf3 {[%clk 0:00:19]} 100. Kf1 {[%clk 0:00:08]}  Ke3 {[%clk 0:00:19]} 101. Kg2 {[%clk 0:00:08]}  Kf4 {[%clk 0:00:20]} 102. Kg1 {[%clk 0:00:08]}  Kg5 {[%clk 0:00:20]} 103. Kg2 {[%clk 0:00:09]}  Kg4 {[%clk 0:00:21]} 1/2-1/2


[Site "https://www.chess.com"]

[Event "Titled Tuesday Blitz June 13 Early 2023"]
[White "Corredor Castellanos, Camilo"]
[Black "Srdanovic, Jovana"]
[WhiteFideId "4425871"]
[BlackFideId "954810"]
[WhiteElo "1994"]
[BlackElo "2155"]
[Result "1-0"]
[Round "9"]
[TimeControl "180+2"]
[Date "2023.06.13"]
[WhiteClock "0:01:01"]
[BlackClock "0:00:00"]
[Board "122"]

1. e4 {[%clk 0:03:00]}  e5 {[%clk 0:02:56]} 2. Nf3 {[%clk 0:03:00]}  Nc6 {[%clk 0:02:55]} 3. Bb5 {[%clk 0:03:00]}  a6 {[%clk 0:02:54]} 4. Ba4 {[%clk 0:02:58]}  d6 {[%clk 0:02:54]} 5. d3 {[%clk 0:02:54]}  Bd7 {[%clk 0:02:54]} 6. c3 {[%clk 0:02:52]}  g6 {[%clk 0:02:53]} 7. O-O {[%clk 0:02:51]}  Nf6 {[%clk 0:02:53]} 8. h3 {[%clk 0:02:51]}  Bg7 {[%clk 0:02:53]} 9. Re1 {[%clk 0:02:41]}  O-O {[%clk 0:02:52]} 10. Be3 {[%clk 0:02:39]}  Ne7 {[%clk 0:02:39]} 11. Bb3 {[%clk 0:02:34]}  c6 {[%clk 0:02:10]} 12. Qc1 {[%clk 0:02:32]}  Qc7 {[%clk 0:01:49]} 13. Bh6 {[%clk 0:02:32]}  Nh5 {[%clk 0:01:45]} 14. Bxg7 {[%clk 0:02:29]}  Kxg7 {[%clk 0:01:40]} 15. d4 {[%clk 0:02:27]}  Nf4 {[%clk 0:01:29]} 16. Na3 {[%clk 0:02:23]}  Nd3 {[%clk 0:01:12]} 17. Qg5 {[%clk 0:02:22]}  Nxe1 {[%clk 0:01:10]} 18. Rxe1 {[%clk 0:02:23]}  f6 {[%clk 0:01:05]} 19. Qh4 {[%clk 0:02:23]}  Rae8 {[%clk 0:00:56]} 20. Nc4 {[%clk 0:02:16]}  d5 {[%clk 0:00:49]} 21. exd5 {[%clk 0:02:16]}  cxd5 {[%clk 0:00:49]} 22. Ne3 {[%clk 0:02:16]}  e4 {[%clk 0:00:47]} 23. Nh2 {[%clk 0:02:15]}  Qd6 {[%clk 0:00:44]} 24. c4 {[%clk 0:02:02]}  dxc4 {[%clk 0:00:39]} 25. Nxc4 {[%clk 0:02:02]}  Qb4 {[%clk 0:00:30]} 26. Rxe4 {[%clk 0:01:49]}  Nf5 {[%clk 0:00:28]} 27. Qf4 {[%clk 0:01:49]}  Rxe4 {[%clk 0:00:27]} 28. Qxe4 {[%clk 0:01:49]}  Re8 {[%clk 0:00:26]} 29. Qf4 {[%clk 0:01:43]}  b5 {[%clk 0:00:20]} 30. Ne3 {[%clk 0:01:36]}  Qe1+ {[%clk 0:00:19]} 31. Nhf1 {[%clk 0:01:36]}  Nxe3 {[%clk 0:00:18]} 32. fxe3 {[%clk 0:01:37]}  Qc1 {[%clk 0:00:09]} 33. Kh2 {[%clk 0:01:35]}  Qxb2 {[%clk 0:00:08]} 34. Qd6 {[%clk 0:01:32]}  Bf5 {[%clk 0:00:05]} 35. Ng3 {[%clk 0:01:31]}  Qf2 {[%clk 0:00:03]} 36. Qd5 {[%clk 0:01:20]}  Rxe3 {[%clk 0:00:02]} 37. Qf7+ {[%clk 0:01:18]}  Kh6 {[%clk 0:00:02]} 38. Qf8+ {[%clk 0:01:18]}  Kg5 {[%clk 0:00:03]} 39. h4+ {[%clk 0:01:15]}  Kf4 {[%clk 0:00:01]} 40. Qh6+ {[%clk 0:01:02]}  Kg4 {[%clk 0:00:01]} 41. Bd1+ {[%clk 0:01:02]}  Re2 {[%clk 0:00:00]} 42. Bxe2+ {[%clk 0:01:01]} 1-0


[Site "https://www.chess.com"]

[Event "Titled Tuesday Blitz June 13 Early 2023"]
[White "Yonal, Timur"]
[Black "Peycheva, Gergana"]
[WhiteFideId "44115725"]
[BlackFideId "2916711"]
[WhiteElo "1966"]
[BlackElo "2216"]
[Result "0-1"]
[Round "9"]
[TimeControl "180+2"]
[Date "2023.06.13"]
[WhiteClock "0:02:12"]
[BlackClock "0:00:40"]
[Board "123"]

1. e4 {[%clk 0:03:00]}  c5 {[%clk 0:02:59]} 2. Nf3 {[%clk 0:02:59]}  Nc6 {[%clk 0:02:59]} 3. Bb5 {[%clk 0:02:58]}  g6 {[%clk 0:02:59]} 4. O-O {[%clk 0:02:58]}  Bg7 {[%clk 0:02:59]} 5. c3 {[%clk 0:02:58]}  Nf6 {[%clk 0:02:59]} 6. Re1 {[%clk 0:02:57]}  O-O {[%clk 0:02:58]} 7. d4 {[%clk 0:02:58]}  d5 {[%clk 0:02:58]} 8. e5 {[%clk 0:02:56]}  Ne4 {[%clk 0:02:58]} 9. Nbd2 {[%clk 0:02:56]}  Nxd2 {[%clk 0:02:43]} 10. Bxd2 {[%clk 0:02:54]}  Qb6 {[%clk 0:02:43]} 11. a4 {[%clk 0:02:53]}  cxd4 {[%clk 0:02:32]} 12. Bxc6 {[%clk 0:02:53]}  dxc3 {[%clk 0:02:23]} 13. Bxd5 {[%clk 0:02:50]}  cxd2 {[%clk 0:02:23]} 14. Qxd2 {[%clk 0:02:50]}  e6 {[%clk 0:02:12]} 15. Bc4 {[%clk 0:02:46]}  Rd8 {[%clk 0:02:09]} 16. Qe2 {[%clk 0:02:46]}  Bd7 {[%clk 0:02:08]} 17. Red1 {[%clk 0:02:46]}  Bc6 {[%clk 0:02:08]} 18. b3 {[%clk 0:02:44]}  Qc5 {[%clk 0:02:02]} 19. Rxd8+ {[%clk 0:02:41]}  Rxd8 {[%clk 0:02:01]} 20. Rd1 {[%clk 0:02:42]}  Rxd1+ {[%clk 0:01:38]} 21. Qxd1 {[%clk 0:02:43]}  Bxe5 {[%clk 0:01:38]} 22. Nxe5 {[%clk 0:02:40]}  Qxe5 {[%clk 0:01:37]} 23. h3 {[%clk 0:02:41]}  Qe4 {[%clk 0:01:16]} 24. Qf1 {[%clk 0:02:38]}  Bd5 {[%clk 0:01:11]} 25. Bxd5 {[%clk 0:02:30]}  exd5 {[%clk 0:01:10]} 26. Qb5 {[%clk 0:02:29]}  d4 {[%clk 0:01:10]} 27. Kf1 {[%clk 0:02:26]}  d3 {[%clk 0:01:07]} 28. Qc5 {[%clk 0:02:18]}  Qe2+ {[%clk 0:00:57]} 29. Kg1 {[%clk 0:02:17]}  d2 {[%clk 0:00:55]} 30. Qc8+ {[%clk 0:02:17]}  Kg7 {[%clk 0:00:55]} 31. Qc3+ {[%clk 0:02:18]}  Kh6 {[%clk 0:00:54]} 32. Kh1 {[%clk 0:02:17]}  d1=Q+ {[%clk 0:00:52]} 33. Kh2 {[%clk 0:02:17]}  Qxf2 {[%clk 0:00:41]} 34. Qe5 {[%clk 0:02:12]}  Qdg1# {[%clk 0:00:40]} 0-1


[Site "https://www.chess.com"]

[Event "Titled Tuesday Blitz June 13 Early 2023"]
[White "FREDERICKtheMATE"]
[Black "Gomes, Luiz Alexandre de Souza"]
[BlackFideId "2102790"]
[WhiteElo "2361"]
[BlackElo "2494"]
[Result "1-0"]
[Round "9"]
[TimeControl "180+2"]
[Date "2023.06.13"]
[WhiteClock "0:00:40"]
[BlackClock "0:00:08"]
[Board "124"]

1. Nf3 {[%clk 0:02:58]}  Nf6 {[%clk 0:02:59]} 2. g3 {[%clk 0:02:59]}  c6 {[%clk 0:02:55]} 3. Bg2 {[%clk 0:02:59]}  d5 {[%clk 0:02:56]} 4. O-O {[%clk 0:02:59]}  Bf5 {[%clk 0:02:56]} 5. b3 {[%clk 0:02:58]}  e6 {[%clk 0:02:57]} 6. Bb2 {[%clk 0:02:59]}  Be7 {[%clk 0:02:58]} 7. c4 {[%clk 0:02:59]}  O-O {[%clk 0:02:57]} 8. d3 {[%clk 0:02:58]}  Nbd7 {[%clk 0:02:57]} 9. Nbd2 {[%clk 0:02:59]}  h6 {[%clk 0:02:58]} 10. Re1 {[%clk 0:02:58]}  Re8 {[%clk 0:02:58]} 11. a3 {[%clk 0:02:57]}  Bh7 {[%clk 0:02:40]} 12. b4 {[%clk 0:02:55]}  a5 {[%clk 0:02:40]} 13. Qb3 {[%clk 0:02:54]}  Qb6 {[%clk 0:02:32]} 14. c5 {[%clk 0:02:52]}  Qa6 {[%clk 0:02:30]} 15. e4 {[%clk 0:02:44]}  dxe4 {[%clk 0:02:29]} 16. dxe4 {[%clk 0:02:45]}  Red8 {[%clk 0:02:24]} 17. Bf1 {[%clk 0:02:44]}  Qa7 {[%clk 0:02:23]} 18. Bc4 {[%clk 0:02:37]}  Nf8 {[%clk 0:02:22]} 19. Rad1 {[%clk 0:02:36]}  Rd7 {[%clk 0:02:14]} 20. Ne5 {[%clk 0:02:34]}  Rdd8 {[%clk 0:02:10]} 21. f3 {[%clk 0:02:27]}  axb4 {[%clk 0:02:10]} 22. axb4 {[%clk 0:02:27]}  Qa4 {[%clk 0:02:10]} 23. Qc3 {[%clk 0:02:25]}  Qa7 {[%clk 0:02:01]} 24. Kg2 {[%clk 0:02:09]}  Qb8 {[%clk 0:01:47]} 25. Bb3 {[%clk 0:02:06]}  Qc7 {[%clk 0:01:46]} 26. Ndc4 {[%clk 0:02:05]}  Rxd1 {[%clk 0:01:44]} 27. Rxd1 {[%clk 0:02:06]}  Rd8 {[%clk 0:01:45]} 28. Rd4 {[%clk 0:01:56]}  Rxd4 {[%clk 0:01:43]} 29. Qxd4 {[%clk 0:01:55]}  Ng6 {[%clk 0:01:37]} 30. Nd3 {[%clk 0:01:40]}  Nf8 {[%clk 0:01:37]} 31. Nd6 {[%clk 0:01:38]}  b6 {[%clk 0:01:30]} 32. Ne5 {[%clk 0:01:35]}  bxc5 {[%clk 0:01:28]} 33. bxc5 {[%clk 0:01:35]}  Bxd6 {[%clk 0:01:18]} 34. cxd6 {[%clk 0:01:34]}  Qb7 {[%clk 0:01:19]} 35. Ba4 {[%clk 0:01:31]}  c5 {[%clk 0:01:16]} 36. Qc3 {[%clk 0:01:28]}  Bxe4 {[%clk 0:01:07]} 37. d7 {[%clk 0:01:18]}  N8xd7 {[%clk 0:00:58]} 38. Nxd7 {[%clk 0:01:17]}  Bxf3+ {[%clk 0:00:55]} 39. Kg1 {[%clk 0:01:11]}  Nh5 {[%clk 0:00:32]} 40. Nxc5 {[%clk 0:01:07]}  Qd5 {[%clk 0:00:31]} 41. Qd4 {[%clk 0:01:05]}  Qa2 {[%clk 0:00:23]} 42. Qd8+ {[%clk 0:01:02]}  Kh7 {[%clk 0:00:23]} 43. Bc2+ {[%clk 0:01:02]}  f5 {[%clk 0:00:22]} 44. Qd4 {[%clk 0:00:50]}  Qa5 {[%clk 0:00:18]} 45. Kf2 {[%clk 0:00:46]}  Bd5 {[%clk 0:00:18]} 46. Bxf5+ {[%clk 0:00:41]}  exf5 {[%clk 0:00:17]} 47. Qxd5 {[%clk 0:00:41]}  g6 {[%clk 0:00:08]} 48. Qf7+ {[%clk 0:00:40]} 1-0


[Site "https://www.chess.com"]